Cogmind - Beta 17.1 --- EXPLORER MODE // 2026.09.22 @ 21:30:07 Player: NeoBioHazard Result: Escaped! Performance ------------- Evolutions (9) 4500 Regions Visited (28) 5600 Robots Destroyed (538) 2690 Value Destroyed (29902) 29902 Prototype IDs (44) 880 Alien Tech Used (1) 200 Bonus (9553) 9553 TOTAL SCORE: 53325 Bonus ------- High Alert Combat Kills 619 Follower Combat Kills 2407 Network Hubs Disabled 600 Registered with UFD 300 Met Optimus in HQ 500 Met Imprinter 300 Met Warlord at Base 500 MAIN.C Attacked Warlord 500 Warlord Defense Kills 286 Built Enhanced Grunts 300 Scanned by Researcher 500 Win 3000 Friendly Fire -259 Cogmind --------- Core Integrity 621/1600 Matter 83/300 Energy 98/100 System Corruption 1% Temperature Warm (101) Movement Core (50) Location To Epsilon Eridani Parts ------- > --- POWER (2) -------- (None) > --- PROPULSION (6) --- (None) > --- UTILITY (12) ----- (None) > --- WEAPON (6) ------- (None) > --- INVENTORY (5) ---- Experimental Heat Sink Centrium Heavy Armor Plating Heavy Disruptor Cannon Peak State ------------ > --- POWER ------------ Vortex Chain Reactor > --- PROPULSION ------- Advanced Heavy Siege Treads High-density Centrium Heavy Treads High-density Centrium Heavy Treads > --- UTILITY ---------- Experimental Power Amplifier Experimental Heat Sink Improved Cooling System Advanced Cooling System 2N-1CE's Frost Array Huge Storage Unit Advanced Energy Well Advanced Targeting Computer Advanced Target Analyzer Layered Medium Armor Plating > --- WEAPON ----------- Enhanced Nova Cannon Cooled Nova Cannon Null Cannon Heavy Gauss Cannon Enhanced Hardcell Cannon Compact Linear Accelerator > --- INVENTORY -------- Antimatter Reactor Quantum Reactor Light Quantum Reactor Biometal Heavy Treads Biometal Heavy Treads Experimental Biometal Heavy Treads Advanced Heat Sink Advanced Heat Sink Advanced Heat Sink Advanced Energy Well Large Matter Pod Layered Medium Armor Plating Centrium Heavy Armor Plating Quantum Rifle Matter Neutralizer Cooled Phase Cannon Enhanced Nova Cannon Hardcell Cannon Linear Accelerator Enhanced Hardcell Cannon Thermoblaster [Rating: 218] Favorites ----------- Power Reinforced Deuterium Engine Engine Reinforced Deuterium Engine Power Core Reinforced Fission Core Reactor Particle Reactor Propulsion Armored Treads Treads Armored Treads Leg Centrium Leg Flight Unit Impulse Thruster Utility Advanced Cooling System Device Advanced Cooling System Storage Huge Storage Unit Processor Advanced Targeting Computer Protection Layered Heavy Armor Plating Weapon Advanced Plasma Cannon Energy Gun Precision Beam Rifle Energy Cannon Advanced Plasma Cannon Ballistic Gun Shotgun Ballistic Cannon Magnetic Acceleration Cannon Launcher Thermoblaster Impact Weapon Maul Build | -11 -10 -10 -10 -9 -8 -8 -8 -8 -6 -6 -6 -6 -5 -5 -5 -5 -5 -4 -4 -4 -4 -4 -4 -3 -2 -2 -2 -1 ------- Run | Yrd Mat Min Exi Min Mat Sto Rec Scr Fac Low Low Zio Pro Fac Upp Upp War Pro Fac Ext Cet Arc Hub Res Res Tes Frg Acc Slots Evolved 19 | . 1 . . . 4 . . . 4 . . . . 2 . . . . 2 . . . . 2 2 . . 2 Power 1 | . . . . . . . . . 1 . . . . . . . . . . . . . . . . . . . Propulsion 4 | . . . . . 2 . . . . . . . . . . . . . . . . . . 2 . . . . Utility 10 | . 1 . . . 1 . . . 2 . . . . 2 . . . . 2 . . . . . . . . 2 Weapon 4 | . . . . . 1 . . . 1 . . . . . . . . . . . . . . . 2 . . . Parts Attached 227 | 6 5 1 . . 6 16 . . 31 1 1 2 7 36 2 . 3 3 12 2 3 1 14 24 12 24 6 9 Power 35 | 1 1 . . . . 2 . . 5 . . 1 2 1 1 . . 1 . 1 2 . 3 6 4 1 1 2 Engine 13 | 1 1 . . . . 2 . . 5 . . 1 2 1 . . . . . . . . . . . . . . Core 4 | . . . . . . . . . . . . . . . . . . 1 . 1 . . 2 . . . . . Reactor 18 | . . . . . . . . . . . . . . . 1 . . . . . 2 . 1 6 4 1 1 2 Propulsion 43 | 2 . . . . 4 . . . 3 1 . . . 6 . . 1 . 4 . . . 2 8 . 5 1 6 Treads 37 | 2 . . . . 4 . . . 3 1 . . . 6 . . 1 . 4 . . . 2 8 . 5 1 . Leg 4 | . . . . . . . . . . . . . . . . . . . . . . . . . . . . 4 Wheel . | . . . . . . . . . . . . . . . . . . . . . . . . . . . . . Hover . | . . . . . . . . . . . . . . . . . . . . . . . . . . . . . Flight 2 | . . . . . . . . . . . . . . . . . . . . . . . . . . . . 2 Utility 85 | 2 1 1 . . 1 1 . . 11 . 1 1 4 21 1 . 2 . 4 1 1 1 5 8 5 11 2 . Device 56 | . . 1 . . . . . . 10 . 1 . 4 12 1 . 1 . 4 1 . 1 4 6 1 7 2 . Storage 5 | 1 1 . . . . . . . . . . . . 1 . . . . . . . . . . 1 1 . . Processor 9 | 1 . . . . . . . . . . . 1 . 3 . . . . . . . . . 1 2 1 . . Hackware . | . . . . . . . . . . . . . . . . . . . . . . . . . . . . . Protection 15 | . . . . . 1 1 . . 1 . . . . 5 . . 1 . . . 1 . 1 1 1 2 . . Artifact . | . . . . . . . . . . . . . . . . . . . . . . . . . . . . . Weapon 64 | 1 3 . . . 1 13 . . 12 . . . 1 8 . . . 2 4 . . . 4 2 3 7 2 1 Energy Gun 10 | 1 1 . . . . 5 . . 3 . . . . . . . . . . . . . . . . . . . Energy Cannon 24 | . . . . . . 1 . . 6 . . . 1 3 . . . . 2 . . . 3 1 1 4 1 1 Ballistic Gun 10 | . 2 . . . 1 6 . . 1 . . . . . . . . . . . . . . . . . . . Ballistic Cannon 18 | . . . . . . . . . 2 . . . . 5 . . . 2 2 . . . 1 1 2 3 . . Launcher 1 | . . . . . . . . . . . . . . . . . . . . . . . . . . . 1 . Special Weapon . | . . . . . . . . . . . . . . . . . . . . . . . . . . . . . Impact Weapon 1 | . . . . . . 1 . . . . . . . . . . . . . . . . . . . . . . Slashing Weapon . | . . . . . . . . . . . . . . . . . . . . . . . . . . . . . Piercing Weapon . | . . . . . . . . . . . . . . . . . . . . . . . . . . . . . Special Melee Weapon . | . . . . . . . . . . . . . . . . . . . . . . . . . . . . . Unidentified Prototypes 31 | . . . . . . 9 . . 2 . . . 1 3 . . . . 1 . 1 . . 1 . 12 1 . Parts Lost 40 | . . . . . . . . . . . . . . 4 2 . 1 . 1 . 1 . 10 1 2 1 15 2 Power 6 | . . . . . . . . . . . . . . 1 . . . . 1 . . . 2 . . . 2 . Propulsion 7 | . . . . . . . . . . . . . . . 1 . . . . . . . 2 . . . 2 2 Utility 16 | . . . . . . . . . . . . . . 1 . . 1 . . . 1 . 4 1 1 1 6 . Weapon 11 | . . . . . . . . . . . . . . 2 1 . . . . . . . 2 . 1 . 5 . Highest Loss Streak 13 | . . . . . . . . . . . . . . 2 2 . 1 . 1 . 1 . 9 1 1 1 13 1 To Critical Strikes 1 | . . . . . . . . . . . . . . . . . 1 . . . . . . . . . . . Average Backups 23 | 2 8 22 25 25 24 24 25 25 24 25 25 25 25 24 24 25 24 23 23 23 24 24 22 21 24 23 19 3 Power 2 | . 1 2 3 3 3 3 3 3 2 2 2 2 2 1 1 2 2 2 1 1 2 2 1 3 4 3 2 . Propulsion 2 | . . 2 4 4 3 1 1 1 . 1 1 1 1 1 2 2 2 2 3 4 4 4 3 4 5 4 2 . Utility 6 | . 2 3 3 3 3 4 5 5 7 9 9 9 9 8 8 10 9 9 7 8 8 8 6 5 6 6 6 2 Weapon 12 | 1 5 14 15 15 14 15 16 16 13 13 13 13 13 13 11 11 10 10 10 10 10 10 9 9 9 9 7 . Tool/Special . | . . . . . . . . . . . . . . . . . . . . . . . . . . . . . Unused Backups 81 | 1 3 . 1 . 3 21 1 . 8 . 1 . 2 5 . . 3 . 5 4 . 1 5 . 1 8 6 2 Power 9 | . 1 . . . . . 1 . 2 . . . 1 . . . . . 1 1 . 1 . . . . 1 . Propulsion 9 | . . . . . 2 2 . . . . . . . . . . . . 1 . . . 1 . . 2 . 1 Utility 15 | . . . 1 . . . . . 3 . 1 . 1 2 . . 1 . . . . . . . . 1 4 1 Weapon 48 | 1 2 . . . 1 19 . . 3 . . . . 3 . . 2 . 3 3 . . 4 . 1 5 1 . Tool/Special . | . . . . . . . . . . . . . . . . . . . . . . . . . . . . . Average Slot Usage (%) 90 | . 85 96 100 100 84 90 91 91 92 93 93 93 93 92 87 88 88 88 90 95 94 95 94 92 92 87 78 3 Engine 7 | . 12 12 12 12 8 8 8 8 11 12 12 12 12 11 6 5 5 . 3 1 . . . . . . . . Reactor 2 | . . . . . . . . . . . . . . . 3 5 5 5 1 . 6 10 9 8 8 7 3 . Treads 21 | . 25 25 25 25 30 33 33 33 24 25 25 25 25 17 15 16 16 16 15 20 20 20 19 22 20 12 11 . Device 16 | . . 8 12 12 8 8 8 8 17 18 18 18 18 17 16 16 16 16 24 25 20 20 20 25 24 20 18 . Storage 6 | . 12 12 12 12 8 8 8 8 6 6 6 6 6 5 5 5 5 5 5 5 5 5 5 4 4 5 7 . Processor 6 | . 12 12 12 12 7 . . . . . . . . 9 11 11 11 11 10 10 10 10 10 9 8 8 7 . Protection 5 | . . . . . 1 8 8 8 6 6 6 6 6 7 5 5 5 5 5 5 8 9 9 3 2 6 3 . Energy Cannon 8 | . . . . . . . . . 10 12 12 12 12 11 10 11 11 11 10 10 10 10 9 9 11 12 11 . Ballistic Gun 5 | . 15 25 25 25 19 24 25 25 . . . . . . . . . . . . . . . . . . . . Ballistic Cannon 8 | . . . . . . . . . 8 12 12 12 12 10 11 11 11 11 10 10 10 10 10 8 11 12 11 . Peak Build Rating 218 | 6 11 14 14 14 31 42 42 42 78 78 78 78 79 104 105 105 106 111 125 129 135 135 135 157 176 217 218 54 Average Rating 94 | 4 8 13 14 14 24 36 42 42 69 78 78 77 78 96 103 105 105 110 122 126 131 134 131 146 169 196 204 10 On Entrance 79 | . 6 11 14 14 14 31 42 42 42 78 78 78 78 78 100 105 105 100 111 124 127 135 135 123 154 170 217 4 Avg Prop Armor Cover (%) 3 | . . . . . . . . . 3 . . . . . . . . . . . . . . . . . . . Naked Turns 214 | . . . . . . . . . . . . . . . . . . . . . . . . . . . 71 143 Heaviest Build 222 | 15 91 92 92 92 110 113 113 113 156 149 149 149 155 180 172 172 172 185 199 193 202 202 202 189 221 222 208 23 Greatest Support 260 | 40 40 40 40 40 82 82 82 82 98 98 98 98 98 127 127 127 127 127 127 117 117 117 117 202 202 260 260 106 Greatest Overweight (x) 2 | . 2 2 2 2 2 1 1 1 2 1 1 1 1 1 1 1 1 1 2 1 1 1 1 1 1 1 . . Average Overweight (x) . | . . 2 2 2 1 1 1 1 1 1 1 1 1 1 1 1 1 1 1 1 1 1 1 . . . . . Largest Inventory Capacity 25 | 10 25 25 25 25 25 25 25 25 25 25 25 25 25 25 25 25 25 25 25 25 25 25 25 25 25 25 25 5 Average Capacity 24 | 7 16 25 25 25 25 25 25 25 25 25 25 25 25 25 25 25 25 25 25 25 25 25 25 25 25 25 24 5 Most Carried 25 | 3 18 25 25 25 25 25 25 25 25 25 25 25 25 25 25 25 25 25 25 25 25 25 25 25 25 25 25 5 Average Carried 23 | 2 8 22 24 25 24 24 25 25 24 25 24 24 24 24 24 25 24 24 24 24 25 25 22 21 24 24 23 4 Final Capacity 25 | 10 25 25 25 25 25 25 25 25 25 25 25 25 25 25 25 25 25 25 25 25 25 25 25 25 25 25 5 5 Final Carried 25 | 2 18 25 25 25 24 25 25 25 25 25 25 25 25 23 25 25 25 25 24 25 25 25 15 25 25 25 5 5 Class Distribution -------------------- 29% | Hacker-Tank 24% | Scavenger-Tank 12% | Hacker-Mutant 9% | Commander-Tank 9% | Scavenger-Executioner 8% | Hacker-Gunner Dominant Class ---------------- Hacker-Mutant | -10/Materials Hacker-Mutant | -10/Mines Hacker-Mutant | -10/Exiles Hacker-Mutant | -9/Mines Hacker-Mutant | -8/Materials Commander-Tank | -8/Storage Commander-Tank | -8/Recycling Commander-Tank | -8/Scraptown Scavenger-Tank | -6/Factory Scavenger-Tank | -6/Lower Caves Scavenger-Tank | -6/Lower Caves Scavenger-Tank | -6/Zion Scavenger-Tank | -5/Proximity Caves Hacker-Tank | -5/Factory Hacker-Tank | -5/Upper Caves Hacker-Tank | -5/Upper Caves Hacker-Tank | -5/Warlord Scavenger-Tank | -4/Proximity Caves Hacker-Tank | -4/Factory Hacker-Gunner | -4/Extension Hacker-Gunner | -4/Cetus Commander-Gunner | -4/Archives Hacker-Gunner | -4/Hub_04(d) Scavenger-Tank | -3/Research Scavenger-Executioner | -2/Research Scavenger-Executioner | -2/Testing Scavenger-Executioner | -2/Protoforge Hacker-Mutant | -1/Access Resources | -11 -10 -10 -10 -9 -8 -8 -8 -8 -6 -6 -6 -6 -5 -5 -5 -5 -5 -4 -4 -4 -4 -4 -4 -3 -2 -2 -2 -1 ----------- Run | Yrd Mat Min Exi Min Mat Sto Rec Scr Fac Low Low Zio Pro Fac Upp Upp War Pro Fac Ext Cet Arc Hub Res Res Tes Frg Acc Matter Collected 15437 | 228 225 45 . 59 132 609 91 . 1074 228 114 30 340 3301 419 . 106 179 752 700 203 101 1375 1106 786 1670 1431 133 Remotely . | . . . . . . . . . . . . . . . . . . . . . . . . . . . . . Salvage Created 26857 | . 325 39 . 96 71 1107 78 . 2730 235 210 . 429 6863 841 . 116 279 1672 1353 458 113 1897 1732 1134 2597 2482 . Parts 1135 | . 16 2 . 6 7 62 1 . 102 11 11 . 23 270 35 . 6 14 77 44 18 5 68 76 64 95 122 . Haulers Intercepted 24 | . 2 . . . 1 5 . . 3 . . . . 2 . . . . 3 . . . 3 2 . 3 . . Recyclers Shooed 8 | . . . . . . . . . 2 . . . . 6 . . . . . . . . . . . . . . Parts Field Recycled . | . . . . . . . . . . . . . . . . . . . . . . . . . . . . . Retrieved Matter . | . . . . . . . . . . . . . . . . . . . . . . . . . . . . . Parts Self-Destructed . | . . . . . . . . . . . . . . . . . . . . . . . . . . . . . Prevented . | . . . . . . . . . . . . . . . . . . . . . . . . . . . . . Parts Restored . | . . . . . . . . . . . . . . . . . . . . . . . . . . . . . Kills | -11 -10 -10 -10 -9 -8 -8 -8 -8 -6 -6 -6 -6 -5 -5 -5 -5 -5 -4 -4 -4 -4 -4 -4 -3 -2 -2 -2 -1 ------- Run | Yrd Mat Min Exi Min Mat Sto Rec Scr Fac Low Low Zio Pro Fac Upp Upp War Pro Fac Ext Cet Arc Hub Res Res Tes Frg Acc Combat Hostiles Destroyed 419 | . 7 1 . 4 2 14 . . 38 6 4 . 8 106 20 . 2 7 24 19 7 1 25 27 17 32 48 . Guns 31 | . 7 1 . 4 2 14 . . 3 . . . . . . . . . . . . . . . . . . . Cannons 355 | . . . . . . . . . 32 5 3 . 6 100 19 . 2 6 23 18 7 1 21 25 16 28 43 . AOE 2 | . . . . . . . . . . . . . . 2 . . . . . . . . . . . . . . Classes Destroyed 25 | . 5 . . 1 . 2 . . 4 . . . 1 3 . . . . . . . . 1 2 . 5 1 . Worker 19 | . 1 . . . . 5 . . 3 . . . . 4 . . . . 2 . . . 3 . . 1 . . Builder 23 | . . . . . . . . . 5 . . . . 4 . . . . 1 1 . . 1 3 3 2 3 . Hauler 24 | . 2 . . . 1 5 . . 3 . . . . 2 . . . . 3 . . . 3 2 . 3 . . Recycler 26 | . 1 . . . . 1 1 . 4 . . . . 12 . . . . 1 3 . . 1 1 . 1 . . Mechanic 1 | . . . . . . . . . . . . . . 1 . . . . . . . . . . . . . . Operator 7 | . . . . . . . . . . . . . . 2 . . . . . 2 . 2 1 . . . . . Watcher 11 | . . . . . . . . . 1 . . . . 3 . . . . 1 . . . . 1 1 1 3 . Swarmer 57 | . 4 . . 2 2 . . . 1 . . . . 17 8 . . 4 3 3 . . . 5 . . 8 . Grunt 133 | . 3 1 . 1 . 5 . . 22 2 2 . 4 48 5 . . . 3 7 4 . 2 8 . 10 6 . Brawler 4 | . . . . . . . . . . . . . . 3 1 . . . . . . . . . . . . . Duelist 4 | . . . . 1 . . . . . 1 . . . . 1 . . . . . . . . 1 . . . . Protector 1 | . . . . . . . . . . . . . . . . . . . . . . . 1 . . . . . Researcher 4 | . . . . . . . . . . . . . . . . . . . . . . . . . . 4 . . Sentry 51 | . . . . . . 7 . . 3 . 1 . . 11 2 . . . 3 4 . 1 4 4 3 . 8 . Specialist 2 | . . . . . . . . . . . . . . . . . . . . . . . . 2 . . . . Hunter 49 | . . . . . . 2 . . 5 2 . . 3 5 . . 2 2 5 4 . . 2 . 5 5 7 . Programmer 83 | . . . . . . . . . 6 1 1 . . 21 2 . . . 10 . . . 6 6 9 11 10 . Heavy 1 | . . . . . . . . . . . . . . . . . . . . . . . . 1 . . . . Q-Series 3 | . . . . . . . . . . . . . . . . . . . . . . . . . . 2 1 . Behemoth 8 | . . . . . . . . . 1 . . . 1 1 1 . . 1 . 1 . . 1 . . . 1 . Cetus Guard 3 | . . . . . . . . . . . . . . . . . . . . . 3 . . . . . . . Enhanced Grunt 4 | . . . . . . . . . . . . . . . . . . . . . . . 4 . . . . . Lightning 9 | . . . . . . . . . . . . . . . . . . . . . . . 9 . . . . . Hotshot 6 | . . . . . . . . . . . . . . . . . . . . . . . . . . . 6 . Decapitator 1 | . . . . . . . . . . . . . . . . . . . . . . . . . . . 1 . Striker 2 | . . . . . . . . . . . . . . . . . . . . . . . . . . 2 . . Alpha 7 1 | . . . . . . . . . . . . . . . . . . . . . . . . . . 1 . . Fortress 1 | . . . . . . . . . . . . . . . . . . . . . . . . . . 1 . . Tinkerer 1 | . . . . . . . . . . . . . 1 . . . . . . . . . . . . . . . Best Kill Streak 11 | . 2 1 . 2 2 5 1 . 8 2 2 . 4 11 4 . 2 4 6 5 4 2 6 5 6 7 8 . Combat Bots Only 8 | . 2 1 . 2 2 3 . . 7 2 2 . 4 8 4 . 2 4 5 5 4 1 5 4 3 5 8 . Max Kills in Single Turn 4 | . 1 1 . 1 1 2 1 . 2 2 2 . 1 3 1 . 1 1 2 1 1 1 4 2 1 2 2 . Gunslinging . | . . . . . . . . . . . . . . . . . . . . . . . . . . . . . Exploded 1 | . . . . . . . . . . . . . . 1 . . . . . . . . . . . . . . Melee . | . . . . . . . . . . . . . . . . . . . . . . . . . . . . . Uniques/NPCs Destroyed . | . . . . . . . . . . . . . . . . . . . . . . . . . . . . . Combat | -11 -10 -10 -10 -9 -8 -8 -8 -8 -6 -6 -6 -6 -5 -5 -5 -5 -5 -4 -4 -4 -4 -4 -4 -3 -2 -2 -2 -1 -------- Run | Yrd Mat Min Exi Min Mat Sto Rec Scr Fac Low Low Zio Pro Fac Upp Upp War Pro Fac Ext Cet Arc Hub Res Res Tes Frg Acc Hostile Shots Fired 2364 | . 44 . . 17 4 42 . . 231 52 22 . 47 381 64 . 57 40 102 62 14 3 239 133 82 95 479 154 Missed 751 | . 12 . . 5 2 16 . . 63 10 8 . 17 112 27 . 13 17 40 26 10 1 65 36 33 34 140 64 Hits 1613 | . 32 . . 12 2 26 . . 168 42 14 . 30 269 37 . 44 23 62 36 4 2 174 97 49 61 339 90 Melee 7 | . . . . 1 . . . . . . . . . . . . . . . . . . . . . . 6 . Projectile 1606 | . 32 . . 11 2 26 . . 168 42 14 . 30 269 37 . 44 23 62 36 4 2 174 97 49 61 333 90 AOE 3 | . . . . . . . . . . . . . . . . . . . . . . . . . 1 1 1 . Critical Strikes 85 | . 1 . . . 1 . . . 7 2 . . 1 11 1 . 3 . 2 3 . . 15 4 3 4 21 6 Actively Blocked 23 | . . . . . . . . . . . . . . . . . . . . . . . 12 4 3 4 . . Part Disruptions 3 | . . . . . . . . . 2 . . . . . . . . . . . . . 1 . . . . . Damage Taken 21717 | . 226 . . 76 10 277 . . 1728 474 59 . 271 3550 456 . 561 280 566 431 111 65 3429 877 505 914 5704 1147 Core 2767 | . 33 . . 12 . . . . 132 23 . . . 194 12 . 69 52 53 30 . . 219 17 31 69 842 979 Absorbed by Shields 1335 | . . . . . . . . . . . . . . . . . . . 216 230 49 . . 592 248 . . . Reduced by Siege Mode 430 | . . . . . . . . . . . . . . . . . . . . . . . . . . . 430 . Ignored by Resistances 13579 | . 145 . . 51 8 171 . . 1047 281 46 . 161 2111 274 . 332 169 460 385 96 37 1970 871 440 538 3311 675 Regen/Repaired (Parts) 1211 | . . . . . . . . . 40 . . 472 . . . . 603 . . . . . . . . . 96 . Core Remaining (%) 74 | 100 . . . 82 . . . 100 . . . . 81 . . . . 67 . . . . 73 98 . . 35 38 Volleys Fired 860 | . 44 2 . 10 5 45 1 . 79 12 4 . 20 185 27 . 7 9 44 46 12 9 81 51 32 60 75 . Largest 6 | . 2 2 . 2 3 3 3 . 4 4 4 . 4 4 4 . 4 4 4 4 4 4 4 4 6 6 6 . Hottest 467 | . 90 46 . 46 69 71 73 . 314 264 264 . 264 314 280 . 280 302 302 186 186 186 251 259 437 467 467 . Shots Fired 3526 | . 59 4 . 20 13 135 3 . 316 48 19 . 80 734 109 . 28 36 176 184 48 35 306 205 192 355 421 . Gun 274 | . 59 4 . 20 13 135 3 . 40 . . . . . . . . . . . . . . . . . . . Cannon 3252 | . . . . . . . . . 276 48 19 . 80 734 109 . 28 36 176 184 48 35 306 205 192 355 421 . Launcher . | . . . . . . . . . . . . . . . . . . . . . . . . . . . . . Special . | . . . . . . . . . . . . . . . . . . . . . . . . . . . . . Kinetic 1770 | . 8 4 . 20 13 135 3 . 126 24 11 . 40 356 54 . 14 18 88 91 24 18 147 102 96 178 200 . Thermal 1756 | . 51 . . . . . . . 190 24 8 . 40 378 55 . 14 18 88 93 24 17 159 103 96 177 221 . Explosive . | . . . . . . . . . . . . . . . . . . . . . . . . . . . . . Electromagnetic . | . . . . . . . . . . . . . . . . . . . . . . . . . . . . . Robot Hit Streak 71 | . 25 11 . 12 10 44 22 . 43 17 24 . 31 55 66 . 11 8 71 49 24 41 49 32 21 70 57 . Robot Miss Streak 4 | . 1 . . 2 2 3 . . 2 2 . . 1 4 1 . 1 1 2 2 1 1 2 1 1 2 3 . Penetration Max 1 | . . . . . . . . . . . . . . 1 . . . . 1 . . . 1 1 . 1 1 . Secondary Targets 2 | . . . . 1 1 . . . . . . . . . . . . . . . . . . . . . . . Max Gunslinging Chain 1 | . . . . 1 1 . . . . . . . . . . . . . . . . . . . . . . . Shots Hit Robots 2293 | . 51 4 . 17 10 103 1 . 193 34 11 . 46 527 66 . 16 19 113 119 35 27 215 130 98 190 268 . Core Hits 913 | . 18 3 . 7 4 51 1 . 87 11 5 . 18 221 28 . 3 11 48 41 16 10 80 52 39 66 93 . Critical Kills 58 | . . . . . . 1 . . 4 1 1 . 2 31 . . . 1 1 . . . 4 2 1 4 5 . Critical Parts Destroyed 22 | . . . . . . 1 . . . . . . . 21 . . . . . . . . . . . . . . Critical Strikes 194 | . 4 . . . . 2 . . 12 2 1 . 3 79 2 . . 4 7 6 2 2 14 9 11 12 22 . Burn 7 | . 4 . . . . . . . 3 . . . . . . . . . . . . . . . . . . . Meltdown 32 | . . . . . . . . . 4 1 1 . 2 6 . . . 1 1 . . . 4 2 1 4 5 . Destroy 53 | . . . . . . 2 . . . . . . . 51 . . . . . . . . . . . . . . Blast 102 | . . . . . . . . . 5 1 . . 1 22 2 . . 3 6 6 2 2 10 7 10 8 17 . Melee Attacks 2 | . . . . . . 2 . . . . . . . . . . . . . . . . . . . . . . Impact 2 | . . . . . . 2 . . . . . . . . . . . . . . . . . . . . . . Slashing . | . . . . . . . . . . . . . . . . . . . . . . . . . . . . . Piercing . | . . . . . . . . . . . . . . . . . . . . . . . . . . . . . Sneak Attacks . | . . . . . . . . . . . . . . . . . . . . . . . . . . . . . Combat Hostiles . | . . . . . . . . . . . . . . . . . . . . . . . . . . . . . Follow-up Attacks . | . . . . . . . . . . . . . . . . . . . . . . . . . . . . . Damage Inflicted 83417 | . 649 73 . 302 139 1712 18 . 6411 1002 416 . 1168 17577 2167 . 557 514 4373 4537 1307 1041 8463 5604 3993 8382 13002 10 Guns 3529 | . 649 73 . 302 139 1705 18 . 643 . . . . . . . . . . . . . . . . . . . Cannons 78476 | . . . . . . . . . 5667 1002 416 . 1168 17113 2167 . 535 514 4373 4466 1307 1041 7763 5591 3993 8373 12987 . Explosions 1336 | . . . . . . . . . 101 . . . . 464 . . . . . 71 . . 700 . . . . . Melee . | . . . . . . . . . . . . . . . . . . . . . . . . . . . . . Ramming 76 | . . . . . . 7 . . . . . . . . . . 22 . . . . . . 13 . 9 15 10 Kinetic 30658 | . 96 73 . 302 139 1705 18 . 1914 416 157 . 483 6530 625 . 195 188 1811 1857 501 532 3094 2314 1190 2509 4009 . Thermal 51893 | . 553 . . . . . . . 4497 586 259 . 685 10910 1542 . 340 326 2562 2680 806 509 4716 3277 2803 5864 8978 . Explosive 137 | . . . . . . . . . . . . . . 137 . . . . . . . . . . . . . . Electromagnetic 653 | . . . . . . . . . . . . . . . . . . . . . . . 653 . . . . . Impact . | . . . . . . . . . . . . . . . . . . . . . . . . . . . . . Slashing . | . . . . . . . . . . . . . . . . . . . . . . . . . . . . . Piercing . | . . . . . . . . . . . . . . . . . . . . . . . . . . . . . Highest Corruption 28 | . . . . . . . . . 2 2 2 2 . 8 3 3 3 . 2 3 3 3 28 3 2 2 9 1 Average Corruption 3 | . . . . . . . . . 1 2 2 2 . 4 3 3 3 . 1 2 3 2 12 2 1 2 5 1 Corruption Purged 17 | . . . . . . . . . . . . . . 7 . . . . . . . 3 7 . . . . . Corruption Blocked . | . . . . . . . . . . . . . . . . . . . . . . . . . . . . . Effects 406 | . . . . . . . . . 14 11 14 . . 139 28 1 6 . 7 21 5 3 57 18 13 20 48 1 Message Errors 91 | . . . . . . . . . 2 1 3 . . 25 7 1 2 . . 5 1 . 20 5 3 5 11 . Matter Fused 93 | . . . . . . . . . 3 1 4 . . 37 7 . 1 . 2 5 . . 10 4 2 6 11 . Heat Flow Errors 50 | . . . . . . . . . 4 3 2 . . 19 4 . 1 . 1 2 1 2 . 4 4 1 1 1 Energy Discharges 33 | . . . . . . . . . 1 . . . . 12 2 . 1 . 3 3 . . 6 . 1 2 2 . Parts Rejected 6 | . . . . . . . . . 1 . . . . 1 . . . . . . 1 . 1 . . 1 1 . Parts Fused 4 | . . . . . . . . . . . . . . 1 . . . . . 1 . . . 1 . 1 . . Data Loss (minor) 56 | . . . . . . . . . 2 4 2 . . 19 3 . . . 1 2 2 . 6 . 2 1 12 . Data Loss (major) 15 | . . . . . . . . . 1 . . . . 5 1 . 1 . . 1 . . 1 1 1 2 1 . Misfires 18 | . . . . . . . . . . 1 3 . . 5 2 . . . . 1 . . 3 2 . . 1 . Alerts 9 | . . . . . . . . . . . . . . 4 1 . . . . . . . 1 . . 1 2 . Misdirections 1 | . . . . . . . . . . . . . . . . . . . . . . . 1 . . . . . Weapon Failures 30 | . . . . . . . . . . 1 . . . 11 1 . . . . 1 . 1 8 1 . . 6 . Overload Shots . | . . . . . . . . . . . . . . . . . . . . . . . . . . . . . Overflow Damage 2642 | . . . . . . . . . 196 14 . . . 621 23 . 58 6 248 109 . 29 120 245 106 185 682 . Projectiles 2442 | . . . . . . . . . 196 14 . . . 473 23 . 58 6 248 109 . 29 68 245 106 185 682 . Explosions 200 | . . . . . . . . . . . . . . 148 . . . . . . . . 52 . . . . . Melee . | . . . . . . . . . . . . . . . . . . . . . . . . . . . . . Knockbacks 195 | . . . . . . . . . 22 2 1 . 2 45 6 . 2 . 10 9 . 4 33 11 11 19 18 . Impact 1 | . . . . . . . . . . . . . . . . . . . . . . . . 1 . . . . Kinetic 184 | . . . . . . . . . 20 2 1 . 2 43 6 . 2 . 10 8 . 4 30 10 11 19 16 . Secondary 10 | . . . . . . . . . 2 . . . . 2 . . . . . 1 . . 3 . . . 2 . Self-Inflicted Damage 421 | . . . . . . . . . 41 . . . . 182 . . . . . . . . 186 . . . 7 5 Shots 7 | . . . . . . . . . 1 . . . . 3 . . . . . . . . 3 . . . . . Rammed 8 | . . . . . . 1 . . . . . . . . . . 1 . . . . . . 1 . 1 1 3 Targets Rammed 8 | . . . . . . 1 . . . . . . . . . . 1 . . . . . . 1 . 1 1 3 Kicked . | . . . . . . . . . . . . . . . . . . . . . . . . . . . . . Crushed . | . . . . . . . . . . . . . . . . . . . . . . . . . . . . . Highest Temperature 512 | . 247 . . . . 2 . . 414 223 180 . 66 512 239 . 136 12 140 199 201 177 36 172 211 32 500 . Average Temperature 77 | . 103 . . . . 1 . . 74 54 53 . 29 108 107 . 87 5 27 83 116 80 14 88 115 12 296 . Received Heat Transfer 5402 | . 165 . . 12 . 171 . . 684 18 21 . 21 1143 135 . . 9 36 307 . . 241 70 15 54 2219 81 Effects 17 | . . . . . . . . . 6 . . . . 9 . . . . . . . . . . . . 2 . Shutdowns 5 | . . . . . . . . . 2 . . . . 2 . . . . . . . . . . . . 1 . Energy Bleed 1 | . . . . . . . . . . . . . . 1 . . . . . . . . . . . . . . Interference 7 | . . . . . . . . . 3 . . . . 4 . . . . . . . . . . . . . . Matter Decay 2 | . . . . . . . . . . . . . . 1 . . . . . . . . . . . . 1 . Short Circuit 1 | . . . . . . . . . 1 . . . . . . . . . . . . . . . . . . . Damage (minor) 1 | . . . . . . . . . . . . . . 1 . . . . . . . . . . . . . . Siege Activations 1 | . . . . . . . . . . . . . . . . . . . . . . . . . . . 1 . Total Turns 46 | . . . . . . . . . . . . . . . . . . . . . . . . . . . 46 . Longest Duration 46 | . . . . . . . . . . . . . . . . . . . . . . . . . . . 46 . Martial Activations . | . . . . . . . . . . . . . . . . . . . . . . . . . . . . . Shielding Activations . | . . . . . . . . . . . . . . . . . . . . . . . . . . . . . Robots Disrupted . | . . . . . . . . . . . . . . . . . . . . . . . . . . . . . Combat Hostiles . | . . . . . . . . . . . . . . . . . . . . . . . . . . . . . Robots Corrupted 4 | . . . . . . . . . . . . . . . . . . . . 1 . . 3 . . . . . Combat Hostiles 1 | . . . . . . . . . . . . . . . . . . . . 1 . . . . . . . . Parts Fried 8 | . . . . . . . . . . . . . . . . . . 1 . 1 . . 6 . . . . . Impact Corruptions 2 | . . . . . . . . . . . . . . . . . . . . 2 . . . . . . . . Robots Melted 35 | . . . . . . . . . 5 1 1 . 2 7 1 . . 1 1 . . . 4 2 1 4 5 . Combat Hostiles 30 | . . . . . . . . . 3 1 1 . 2 4 1 . . 1 1 . . . 4 2 1 4 5 . Parts Melted 127 | . 4 . . . . . . . 19 3 3 . 6 26 2 . . 1 6 2 . . 13 7 9 13 13 . Heat Transferred 57029 | . 1865 . . . . . . . 7224 833 348 . 994 14910 2250 . 450 500 3329 2659 814 518 4058 3071 2405 4925 5876 . Parts Sabotaged . | . . . . . . . . . . . . . . . . . . . . . . . . . . . . . Parts Stolen . | . . . . . . . . . . . . . . . . . . . . . . . . . . . . . Parts Stripped . | . . . . . . . . . . . . . . . . . . . . . . . . . . . . . Power Chain Reactions 2 | . . . . . . . . . . . . . . . . . . . . . . . 2 . . . . . Alert | -11 -10 -10 -10 -9 -8 -8 -8 -8 -6 -6 -6 -6 -5 -5 -5 -5 -5 -4 -4 -4 -4 -4 -4 -3 -2 -2 -2 -1 ------- Run | Yrd Mat Min Exi Min Mat Sto Rec Scr Fac Low Low Zio Pro Fac Upp Upp War Pro Fac Ext Cet Arc Hub Res Res Tes Frg Acc Maximum Alert Level 2 | . . . . . . 1 . . 1 . . . . 1 . . . . 1 2 . . 2 1 . 1 2 1 Low Security (%) 85 | 100 100 100 . 100 100 89 100 . 93 . . . . 93 . . . . 96 45 100 100 54 97 100 83 31 50 Level 1 10 | . . . . . . 10 . . 6 . . . . 6 . . . . 3 36 . . 42 2 . 16 11 50 Level 2 4 | . . . . . . . . . . . . . . . . . . . . 17 . . 3 . . . 57 . Level 3 . | . . . . . . . . . . . . . . . . . . . . . . . . . . . . . Level 4 . | . . . . . . . . . . . . . . . . . . . . . . . . . . . . . Level 5 . | . . . . . . . . . . . . . . . . . . . . . . . . . . . . . High Security . | . . . . . . . . . . . . . . . . . . . . . . . . . . . . . Max Security . | . . . . . . . . . . . . . . . . . . . . . . . . . . . . . Peak Influence 656 | . 62 37 . 50 35 248 28 . 330 . . . . 279 . . . . 213 518 98 73 429 213 134 301 656 244 Initial 244 | . . . . . . . . . . . . . . . . . . . . 58 . . . 121 74 25 8 244 Average 90 | . 6 . . 6 5 62 1 . 50 . . . . 64 . . . . 61 202 31 15 203 82 41 116 368 204 Influence Increases 16864 | . 222 103 . 100 57 926 62 . 1487 130 100 . 200 3556 555 . 107 170 812 1058 221 132 1858 923 723 1377 1808 177 Destroy 0b10 Robot/C 9440 | . 140 80 . 80 40 500 40 . 820 120 80 . 160 2120 400 . 100 140 480 580 160 80 700 540 340 780 960 . Destroy 0b10 Robot/NC 655 | . 20 . . . 5 80 5 . 90 . . . . 140 . . . . 40 40 5 10 75 35 20 60 30 . Destroy Leader 2094 | . 34 20 . 20 12 184 . . 226 10 20 . 40 470 50 . . 30 128 102 10 . 184 136 92 110 216 . Allied During Kill 461 | . . 3 . . . 100 6 . 11 . . . . . . . 7 . . 133 34 26 121 . . 20 . . Successful Hack 601 | . 13 . . . . 52 11 . 8 . . . . 66 . . . . 10 10 . . 10 75 58 65 166 57 Disable Machine 428 | . . . . . . 8 . . 72 . . . . 84 . . . . 20 32 . 8 96 20 12 36 40 . Anti-Garrison Action 300 | . . . . . . . . . 150 . . . . 150 . . . . . . . . . . . . . . Destroy Structure 2255 | . . . . . . 2 . . 95 . . . . 376 . . . . 134 116 12 8 672 102 201 306 231 . Partial Spotted 15 | . . . . . . . . . . . . . . . . . . . . . . . . . . . . 15 Lose Combat Pursuer 615 | . 15 . . . . . . . 15 . . . . 150 105 . . . . 45 . . . 15 . . 165 105 Influence Decreases 16643 | . 222 103 . 100 57 926 62 . 1324 293 100 . 200 3542 569 . 107 170 650 1220 221 132 1545 1060 839 1416 1291 494 Entered New Map 834 | . . . . . . . . . . 86 . . . . 8 . . . . 104 . . . 192 102 35 13 294 Time Decay 14584 | . 222 72 . 100 57 886 59 . 1197 207 100 . 200 3502 536 . 59 170 649 776 191 112 1405 858 717 1201 1128 180 Lost Part 381 | . . . . . . . . . . . . . . 40 20 . . . 1 . 10 . 100 10 20 10 150 20 Lost Ally 342 | . . 31 . . . 40 . . 78 . . . . . 5 . 48 . . 40 20 20 40 . . 20 . . Purge Threat 502 | . . . . . . . 3 . 49 . . . . . . . . . . 300 . . . . . 150 . . Squads Dispatched 94 | . . . . . . 5 . . 16 . . . . 24 . . . . 6 5 1 . 7 9 3 8 9 1 Investigation 27 | . . . . . . 1 . . 6 . . . . 10 . . . . 1 2 1 . . 2 . 1 3 . Extermination 37 | . . . . . . . . . 5 . . . . 10 . . . . 3 . . . 4 3 3 4 4 1 Reinforcement 22 | . . . . . . 1 . . 2 . . . . 2 . . . . 2 3 . . 3 4 . 3 2 . Assault 2 | . . . . . . . . . 1 . . . . 1 . . . . . . . . . . . . . . Garrison 6 | . . . . . . 3 . . 2 . . . . 1 . . . . . . . . . . . . . . Intercept . | . . . . . . . . . . . . . . . . . . . . . . . . . . . . . Searches Triggered . | . . . . . . . . . . . . . . . . . . . . . . . . . . . . . Construction Impeded 2 | . . . . . . . . . . . . . . . . . . . . 1 . . 1 . . . . . Haulers Reinforced 3 | . . . . . . . . . . . . . . 1 . . . . 1 . . . 1 . . . . . Active Scanning Responses . | . . . . . . . . . . . . . . . . . . . . . . . . . . . . . Cargo Convoy Interrupts 1 | . . . . . . . . . . . . . . . . . . . . . . . . 1 . . . . Stealth | -11 -10 -10 -10 -9 -8 -8 -8 -8 -6 -6 -6 -6 -5 -5 -5 -5 -5 -4 -4 -4 -4 -4 -4 -3 -2 -2 -2 -1 --------- Run | Yrd Mat Min Exi Min Mat Sto Rec Scr Fac Low Low Zio Pro Fac Upp Upp War Pro Fac Ext Cet Arc Hub Res Res Tes Frg Acc Distress Signals 29 | . . 1 . . . 1 . . 3 . . . . 6 . . 3 . . 1 1 . 2 3 2 1 4 1 Communications Jammed . | . . . . . . . . . . . . . . . . . . . . . . . . . . . . . Distress Signals . | . . . . . . . . . . . . . . . . . . . . . . . . . . . . . Times Spotted 603 | . 9 3 . 4 2 28 3 2 47 6 4 . 8 135 26 . 12 7 26 31 11 8 43 36 22 37 74 19 Peak Tracking Total 14 | . 3 2 . 2 2 5 2 2 4 3 2 . 4 8 7 . 6 4 4 5 5 2 7 5 3 4 14 13 Tactical Retreats 22 | . 1 . . . . . . . 1 . . . . 7 2 . . . . 2 . . . 1 . . 5 3 Traps | -11 -10 -10 -10 -9 -8 -8 -8 -8 -6 -6 -6 -6 -5 -5 -5 -5 -5 -4 -4 -4 -4 -4 -4 -3 -2 -2 -2 -1 ------- Run | Yrd Mat Min Exi Min Mat Sto Rec Scr Fac Low Low Zio Pro Fac Upp Upp War Pro Fac Ext Cet Arc Hub Res Res Tes Frg Acc Traps Triggered 19 | . 4 . . . . 2 . . 2 . . . . 5 . . . . . 2 . . . 1 . 2 1 . Indirectly . | . . . . . . . . . . . . . . . . . . . . . . . . . . . . . Trap Hack Attempts . | . . . . . . . . . . . . . . . . . . . . . . . . . . . . . Triggered . | . . . . . . . . . . . . . . . . . . . . . . . . . . . . . Disarmed . | . . . . . . . . . . . . . . . . . . . . . . . . . . . . . Reprogrammed . | . . . . . . . . . . . . . . . . . . . . . . . . . . . . . Reused . | . . . . . . . . . . . . . . . . . . . . . . . . . . . . . Traps Extracted . | . . . . . . . . . . . . . . . . . . . . . . . . . . . . . Installed . | . . . . . . . . . . . . . . . . . . . . . . . . . . . . . Triggered . | . . . . . . . . . . . . . . . . . . . . . . . . . . . . . Machines | -11 -10 -10 -10 -9 -8 -8 -8 -8 -6 -6 -6 -6 -5 -5 -5 -5 -5 -4 -4 -4 -4 -4 -4 -3 -2 -2 -2 -1 ---------- Run | Yrd Mat Min Exi Min Mat Sto Rec Scr Fac Low Low Zio Pro Fac Upp Upp War Pro Fac Ext Cet Arc Hub Res Res Tes Frg Acc Machines Disabled 116 | . . . . . . 2 . . 19 . . . 2 22 . . . . 5 9 . 2 24 5 3 13 10 . Max in Single Turn 8 | . . . . . . 1 . . 8 . . . 1 5 . . . . 3 2 . 1 8 1 2 2 5 . Garrison Access 7 | . . . . . 1 1 . . 1 . . . . 3 . . . . . . . . . . . 1 . . Network Hub 3 | . . . . . . . . . . . . . . . . . . . . . . . 3 . . . . . Energy Cycler 3 | . . . . . . . . . . . . . . . . . . . . 3 . . . . . . . . Machines Repaired . | . . . . . . . . . . . . . . . . . . . . . . . . . . . . . Machines Dismantled . | . . . . . . . . . . . . . . . . . . . . . . . . . . . . . Machines Sabotaged . | . . . . . . . . . . . . . . . . . . . . . . . . . . . . . Overloaded Fab Kills . | . . . . . . . . . . . . . . . . . . . . . . . . . . . . . Hacking | -11 -10 -10 -10 -9 -8 -8 -8 -8 -6 -6 -6 -6 -5 -5 -5 -5 -5 -4 -4 -4 -4 -4 -4 -3 -2 -2 -2 -1 --------- Run | Yrd Mat Min Exi Min Mat Sto Rec Scr Fac Low Low Zio Pro Fac Upp Upp War Pro Fac Ext Cet Arc Hub Res Res Tes Frg Acc Machines Accessed 95 | . 2 . 1 . 1 9 2 1 11 . . . 1 23 1 . 2 . 3 8 1 . 4 5 2 8 8 2 Terminals 59 | . 2 . . . . 8 2 . 6 . . . . 10 . . . . 1 8 1 . 4 3 2 6 4 2 Fabricators 2 | . . . . . . . . . . . . . . 2 . . . . . . . . . . . . . . Repair Stations 3 | . . . . . . . . . 1 . . . . . . . . . . . . . . . . . 2 . Recycling Units 13 | . . . . . . . . . 4 . . . . 6 . . . . 1 . . . . 2 . . . . Scanalyzers 6 | . . . . . . . . . . . . . . 2 . . . . 1 . . . . . . 1 2 . Garrison Access 6 | . . . . . 1 1 . . . . . . . 3 . . . . . . . . . . . 1 . . Total Hacks 288 | . 6 . 1 . 1 26 8 1 32 . . . 1 47 1 . 3 . 8 15 4 . 10 26 9 36 50 3 Successful 138 | . 4 . 1 . 1 18 5 1 15 . . . 1 25 1 . 3 . 3 6 . . 3 8 5 18 17 3 Failed 150 | . 2 . . . . 8 3 . 17 . . . . 22 . . . . 5 9 4 . 7 18 4 18 33 . Catastrophic 29 | . . . . . . . . . 2 . . . . 7 . . . . . 1 2 . 2 3 2 5 5 . Database Lockouts . | . . . . . . . . . . . . . . . . . . . . . . . . . . . . . Manual 167 | . 5 . . . . 12 4 . 28 . . . . 31 . . . . 3 5 1 . 10 21 7 22 16 2 Terminals 201 | . 6 . . . . 25 8 . 20 . . . . 24 . . . . 1 15 4 . 10 24 9 27 25 3 Fabricators 4 | . . . . . . . . . . . . . . 4 . . . . . . . . . . . . . . Repair Stations 15 | . . . . . . . . . 3 . . . . . . . . . . . . . . . . . 12 . Recycling Units 23 | . . . . . . . . . 9 . . . . 9 . . . . 3 . . . . 2 . . . . Scanalyzers 30 | . . . . . . . . . . . . . . 5 . . . . 4 . . . . . . 8 13 . Garrison Access 8 | . . . . . 1 1 . . . . . . . 5 . . . . . . . . . . . 1 . . Terminal Hacks 59 | . 2 . 1 . . 13 4 1 4 . . . 1 5 1 . 3 . 1 6 . . . 3 3 6 3 2 Record 6 | . . . 1 . . . . 1 . . . . 1 . . . 2 . . . . . . . . . 1 . Part Schematic 3 | . . . . . . 3 . . . . . . . . . . . . . . . . . . . . . . Robot Analysis 11 | . 1 . . . . 5 . . . . . . . 2 . . . . . . . . . . . 2 1 . Prototype ID Bank 2 | . . . . . . . 1 . . . . . . . . . . . . . . . . . . 1 . . Open Door 10 | . . . . . . 2 . . . . . . . . 1 . 1 . 1 4 . . . . . . . 1 Level Access Points 3 | . . . . . . . . . . . . . . . . . . . . . . . . 1 . 1 . 1 Branch Access Points 5 | . . . . . . . . . . . . . . 1 . . . . . . . . . 1 1 1 1 . Recycling Unit Index 1 | . . . . . . . . . . . . . . 1 . . . . . . . . . . . . . . Unreport Threat 8 | . . . . . . 1 1 . 3 . . . . . . . . . . 2 . . . . . 1 . . Locate Traps 6 | . 1 . . . . 1 . . 1 . . . . 1 . . . . . . . . . 1 1 . . . Hauler Manifests 1 | . . . . . . . 1 . . . . . . . . . . . . . . . . . . . . . Registered Components 2 | . . . . . . 1 1 . . . . . . . . . . . . . . . . . . . . . Zone Layout 1 | . . . . . . . . . . . . . . . . . . . . . . . . . 1 . . . Fabricator Hacks 4 | . . . . . . . . . . . . . . 4 . . . . . . . . . . . . . . Load Schematic 2 | . . . . . . . . . . . . . . 2 . . . . . . . . . . . . . . Build 2 | . . . . . . . . . . . . . . 2 . . . . . . . . . . . . . . Repair Station Hacks 7 | . . . . . . . . . 2 . . . . . . . . . . . . . . . . . 5 . Scan Component 4 | . . . . . . . . . 1 . . . . . . . . . . . . . . . . . 3 . Repair 3 | . . . . . . . . . 1 . . . . . . . . . . . . . . . . . 2 . Recycling Unit Hacks . | . . . . . . . . . . . . . . . . . . . . . . . . . . . . . Scanalyzer 16 | . . . . . . . . . . . . . . 4 . . . . 1 . . . . . . 6 5 . Retrieve Study 16 | . . . . . . . . . . . . . . 4 . . . . 1 . . . . . . 6 5 . Garrison Access Hacks 5 | . . . . . 1 1 . . . . . . . 2 . . . . . . . . . . . 1 . . Seal Access 5 | . . . . . 1 1 . . . . . . . 2 . . . . . . . . . . . 1 . . Unauthorized Hacks 46 | . 2 . . . . 4 1 . 8 . . . . 10 . . . . 1 . . . 3 5 2 5 4 1 Terminals 34 | . 2 . . . . 4 1 . 5 . . . . 4 . . . . . . . . 3 3 2 5 4 1 Botnet 34 | . 2 . . . . 4 1 . 5 . . . . 4 . . . . . . . . 3 3 2 5 4 1 Fabricators . | . . . . . . . . . . . . . . . . . . . . . . . . . . . . . Repair Stations . | . . . . . . . . . . . . . . . . . . . . . . . . . . . . . Recycling Units 12 | . . . . . . . . . 3 . . . . 6 . . . . 1 . . . . 2 . . . . Fedlink 12 | . . . . . . . . . 3 . . . . 6 . . . . 1 . . . . 2 . . . . Scanalyzers . | . . . . . . . . . . . . . . . . . . . . . . . . . . . . . Garrison Access . | . . . . . . . . . . . . . . . . . . . . . . . . . . . . . Data Cores Recovered 3 | . . . . . . . . . 1 . . . . 2 . . . . . . . . . . . . . . Used 1 | . . . . . . . . . . . . . . 1 . . . . . . . . . . . . . . Hacking Detections 69 | . 2 . . . . 8 2 . 9 . . . . 14 . . . . 2 5 1 . 4 3 2 7 8 2 Full Trace Events 11 | . . . . . . 1 . . 2 . . . . 3 . . . . . 2 1 . . . . . 2 . Feedback Events 2 | . . . . . . . . . . . . . . . . . . . . 1 . . . . . . 1 . Corruption 2 | . . . . . . . . . . . . . . . . . . . . 1 . . . . . . 1 . Feedback Blocked . | . . . . . . . . . . . . . . . . . . . . . . . . . . . . . Robot Schematics Acquired 7 | . . . . . . . . . . . . 3 . . . . . . . . . . . . . 4 . . Robots Built . | . . . . . . . . . . . . . . . . . . . . . . . . . . . . . Authchips . | . . . . . . . . . . . . . . . . . . . . . . . . . . . . . Time . | . . . . . . . . . . . . . . . . . . . . . . . . . . . . . Total Robot Build Rating . | . . . . . . . . . . . . . . . . . . . . . . . . . . . . . Part Schematics Acquired 30 | . . . . . . 3 . . . . . 15 . . . . . . . . . . . . . 12 . . Parts Built 4 | . . . . . . . . . . . . . . 4 . . . . . . . . . . . . . . Authchips . | . . . . . . . . . . . . . . . . . . . . . . . . . . . . . Time 159 | . . . . . . . . . . . . . . 159 . . . . . . . . . . . . . . Total Part Build Rating 24 | . . . . . . . . . . . . . . 24 . . . . . . . . . . . . . . Part Studies Acquired 16 | . . . . . . . . . . . . . . 4 . . . . 1 . . . . . . 6 5 . Parts Repaired 3 | . . . . . . . . . 1 . . . . . . . . . . . . . . . . . 2 . Time 57 | . . . . . . . . . 25 . . . . . . . . . . . . . . . . . 32 . Parts Recycled . | . . . . . . . . . . . . . . . . . . . . . . . . . . . . . Recycled Matter . | . . . . . . . . . . . . . . . . . . . . . . . . . . . . . Retrieved Matter . | . . . . . . . . . . . . . . . . . . . . . . . . . . . . . Retrieved Components . | . . . . . . . . . . . . . . . . . . . . . . . . . . . . . Parts Scanalyzed . | . . . . . . . . . . . . . . . . . . . . . . . . . . . . . Part Schematics Acquired . | . . . . . . . . . . . . . . . . . . . . . . . . . . . . . Parts Damaged . | . . . . . . . . . . . . . . . . . . . . . . . . . . . . . Bothacking | -11 -10 -10 -10 -9 -8 -8 -8 -8 -6 -6 -6 -6 -5 -5 -5 -5 -5 -4 -4 -4 -4 -4 -4 -3 -2 -2 -2 -1 ------------ Run | Yrd Mat Min Exi Min Mat Sto Rec Scr Fac Low Low Zio Pro Fac Upp Upp War Pro Fac Ext Cet Arc Hub Res Res Tes Frg Acc Used RIF Installer . | . . . . . . . . . . . . . . . . . . . . . . . . . . . . . Robots Hacked . | . . . . . . . . . . . . . . . . . . . . . . . . . . . . . Non-combat . | . . . . . . . . . . . . . . . . . . . . . . . . . . . . . Combat . | . . . . . . . . . . . . . . . . . . . . . . . . . . . . . Robot Hacks Applied . | . . . . . . . . . . . . . . . . . . . . . . . . . . . . . Relay Couplers Released 14 | . . . . . . . . . 3 . . . . 8 . . . . . . . . . . . 3 . . Machine Destruction 4 | . . . . . . . . . 3 . . . . 1 . . . . . . . . . . . . . . Programmers 10 | . . . . . . . . . . . . . . 7 . . . . . . . . . . . 3 . . Fabnet Peak Effective % . | . . . . . . . . . . . . . . . . . . . . . . . . . . . . . Robots Rewired 8 | . . . . . . . . . . . . . . . 2 . 5 . . . . . . . . 1 . . Allies Hacked 1 | . . . . . . . . . . . . . . . . . . . . . . . . . . 1 . . Hacks Repelled . | . . . . . . . . . . . . . . . . . . . . . . . . . . . . . Allies | -11 -10 -10 -10 -9 -8 -8 -8 -8 -6 -6 -6 -6 -5 -5 -5 -5 -5 -4 -4 -4 -4 -4 -4 -3 -2 -2 -2 -1 -------- Run | Yrd Mat Min Exi Min Mat Sto Rec Scr Fac Low Low Zio Pro Fac Upp Upp War Pro Fac Ext Cet Arc Hub Res Res Tes Frg Acc Total Allies 35 | . . 3 . . . 10 . . . . . . . . 2 . 5 . . 9 5 . . . . 1 . . Largest Group 10 | . . 3 . . . 10 8 6 6 . . . . . 2 . 5 . . 7 9 8 7 . . 1 . . Highest-Rated Group 728 | . . 40 . . . 173 141 109 108 . . . . . 59 . 233 . . 407 728 575 548 . . 158 . . Highest-Rated Ally 159 | . . 16 . . . 29 29 29 29 . . . . . 30 . 64 . . 159 159 96 96 . . 158 . . Initial UFD Resources 100 | . . . . . . . . . 23 39 39 39 41 41 63 63 63 66 66 76 76 76 76 79 97 97 97 100 Total Orders 1 | . . 1 . . . . . . . . . . . . . . . . . . . . . . . . . . STAY 1 | . . 1 . . . . . . . . . . . . . . . . . . . . . . . . . . Ally Attacks 436 | . . 27 . . . 84 9 9 53 . . . . . . . 18 . . 84 24 28 68 . . 32 . . Total Damage 11202 | . . 298 . . . 959 144 97 656 . . . . . . . 466 . . 1927 633 849 2998 . . 2175 . . Kills 73 | . . 3 . . . 16 2 2 5 . . . . . . . 3 . . 13 2 3 17 . . 7 . . Allies Corrupted 4 | . . . . . . . . . . . . . . . . . . . . . . . 3 . . 1 . . Allies Melted 4 | . . . . . . . . . . . . . . . 1 . 3 . . . . . . . . . . . Intel | -11 -10 -10 -10 -9 -8 -8 -8 -8 -6 -6 -6 -6 -5 -5 -5 -5 -5 -4 -4 -4 -4 -4 -4 -3 -2 -2 -2 -1 ------- Run | Yrd Mat Min Exi Min Mat Sto Rec Scr Fac Low Low Zio Pro Fac Upp Upp War Pro Fac Ext Cet Arc Hub Res Res Tes Frg Acc Active Infowar (turns) 32 | . . . . . . . . . . . . . 2 . . . . . . 1 . . . . . 29 . . Sensors 2 | . . . . . . . . . . . . . 2 . . . . . . . . . . . . . . . Structural 22 | . . . . . . . . . . . . . . . . . . . . . . . . . . 22 . . Triangulation 7 | . . . . . . . . . . . . . . . . . . . . . . . . . . 7 . . Jamming 1 | . . . . . . . . . . . . . . . . . . . . 1 . . . . . . . . Robot Analysis Total 11 | . 1 . . . . 5 . . . . . . . 2 . . . . . . . . . . . 2 1 . Derelict Logs Recovered 11 | . . 1 . . . . . . . 2 2 2 1 . 3 . . . . . . . . . . . . . Drone Launches . | . . . . . . . . . . . . . . . . . . . . . . . . . . . . . Drone Recoveries . | . . . . . . . . . . . . . . . . . . . . . . . . . . . . . Exploration | -11 -10 -10 -10 -9 -8 -8 -8 -8 -6 -6 -6 -6 -5 -5 -5 -5 -5 -4 -4 -4 -4 -4 -4 -3 -2 -2 -2 -1 ------------- Run | Yrd Mat Min Exi Min Mat Sto Rec Scr Fac Low Low Zio Pro Fac Upp Upp War Pro Fac Ext Cet Arc Hub Res Res Tes Frg Acc Turns Passed 38394 | 75 1144 1717 760 508 228 1908 765 1457 3009 892 740 1648 1324 6686 1527 27 1678 572 1379 1280 365 264 1989 1538 1276 1821 1575 242 Spaces Moved 14624 | 43 469 473 238 149 81 680 285 515 1055 346 292 671 504 2299 550 12 666 221 488 451 100 83 569 711 462 932 841 438 Core 409 | 5 . . . . . . . . . . . . . . . . . . . . . . . . . . 136 268 Treads 14045 | 38 469 473 238 149 81 680 285 515 1055 346 292 671 504 2299 550 12 666 221 488 451 100 83 569 711 462 932 705 . Legs 27 | . . . . . . . . . . . . . . . . . . . . . . . . . . . . 27 Wheels . | . . . . . . . . . . . . . . . . . . . . . . . . . . . . . Hover . | . . . . . . . . . . . . . . . . . . . . . . . . . . . . . Flight 143 | . . . . . . . . . . . . . . . . . . . . . . . . . . . . 143 Fastest Speed 40 | 50 160 320 320 320 241 243 243 243 243 245 245 245 245 240 243 243 243 243 242 242 242 242 242 160 160 150 50 40 Average Speed 226 | 147 210 320 320 320 248 243 243 243 247 245 245 245 245 242 243 243 243 243 243 242 242 242 242 174 239 159 141 50 Slowest Speed 326 | 160 320 320 320 320 320 243 243 243 326 245 245 245 245 245 243 243 243 243 323 242 242 242 242 248 242 242 160 110 Overloaded Moves . | . . . . . . . . . . . . . . . . . . . . . . . . . . . . . Propulsion Burnouts . | . . . . . . . . . . . . . . . . . . . . . . . . . . . . . Robots Hopped 8 | . . . . . . . . . . . . . . . . . . . . . . . . . . . . 8 Potential Cave-ins 17 | . . . . . . . . . . . . . . . . . 6 . . . . . . . 7 4 . . Cave-ins Triggered . | . . . . . . . . . . . . . . . . . . . . . . . . . . . . . Exploration Rate (%) 51 | 4 61 92 60 36 9 89 69 62 35 54 56 73 66 66 67 11 82 49 16 76 55 77 53 20 12 90 31 18 Regions Visited 28 Branch Regions 20 Pre-discovered Areas 2 | . . . 1 . . . . . 1 . . . . . . . . . . . . . . . . . . . Known Exits Taken 28 | 1 1 1 1 1 1 1 1 1 1 1 1 1 1 1 1 1 1 1 1 1 1 1 1 1 1 1 1 . Unknown Exits Taken . | . . . . . . . . . . . . . . . . . . . . . . . . . . . . . Scrap Searched 20 | . . 1 . 2 . . . 3 . 1 3 5 2 . 1 . . 2 . . . . . . . . . . Spaces Dug 38 | . . . . . . . . . . . . . . . . . 4 . . . . . . 8 14 12 . . Terrain Destroyed 1465 | . . . . . . . . . 99 5 4 . 17 207 36 . 12 18 85 70 4 2 555 54 109 96 92 . Melee . | . . . . . . . . . . . . . . . . . . . . . . . . . . . . . Projectile 669 | . . . . . . . . . 34 5 4 . 17 78 36 . 12 18 45 39 4 2 57 54 76 96 92 . AOE 796 | . . . . . . . . . 65 . . . . 129 . . . . 40 31 . . 498 . 33 . . . Terrain Rammed . | . . . . . . . . . . . . . . . . . . . . . . . . . . . . . Walls Destroyed . | . . . . . . . . . . . . . . . . . . . . . . . . . . . . . Machines Disabled . | . . . . . . . . . . . . . . . . . . . . . . . . . . . . . Actions | -11 -10 -10 -10 -9 -8 -8 -8 -8 -6 -6 -6 -6 -5 -5 -5 -5 -5 -4 -4 -4 -4 -4 -4 -3 -2 -2 -2 -1 --------- Run | Yrd Mat Min Exi Min Mat Sto Rec Scr Fac Low Low Zio Pro Fac Upp Upp War Pro Fac Ext Cet Arc Hub Res Res Tes Frg Acc Total 17879 | 52 568 674 241 162 100 855 358 723 1265 363 309 676 548 2972 673 11 710 235 577 533 193 125 987 874 544 1097 1006 448 Wait 1702 | . 23 192 . 4 . 47 71 207 53 . 10 . 3 403 65 . . . 13 9 77 30 304 76 20 25 65 5 Move 14580 | 42 468 472 237 148 80 679 284 514 1054 345 291 670 503 2298 549 11 665 220 487 450 99 82 568 710 461 931 841 421 Hop 8 | . . . . . . . . . . . . . . . . . . . . . . . . . . . . 8 Pick Up 144 | 3 19 7 2 . 3 26 1 1 15 1 1 1 3 8 3 . 3 . 8 8 . 1 7 2 6 12 3 . Fast Attach 67 | 6 5 1 . . 3 4 . . 2 . . . 1 6 . . 1 . 2 . 2 . 1 6 4 12 2 9 Attach 50 | . . . . . 1 1 . . 5 . . . . 10 2 . . 1 3 . . . 11 3 1 1 11 . Detach 7 | . 1 . . . 1 . . . . . . . . 2 . . . . . . . . . 2 . . . 1 Swap 175 | . 3 . . . 2 17 . . 30 1 1 3 9 33 3 . 3 3 8 3 2 2 8 19 8 15 2 . Drop 207 | 1 5 . 2 . 5 33 1 1 27 2 2 2 9 25 1 . 7 2 12 8 1 1 7 4 12 32 4 1 Fire 860 | . 44 2 . 10 5 45 1 . 79 12 4 . 20 185 27 . 7 9 44 46 12 9 81 51 32 60 75 . Melee 2 | . . . . . . 2 . . . . . . . . . . . . . . . . . . . . . . Ram 3 | . . . . . . . . . . . . . . . . . . . . . . . . . . . . 3 Kick . | . . . . . . . . . . . . . . . . . . . . . . . . . . . . . Crush 4 | . . . . . . 1 . . . . . . . . . . 1 . . . . . . 1 . 1 . . Escape Stasis 15 | . . . . . . . . . . . . . . 2 . . . . . 9 . . . . . 1 3 . Rewire 55 | . . . . . . . . . . 2 . . . . 23 . 23 . . . . . . . . 7 . . Trap . | . . . . . . . . . . . . . . . . . . . . . . . . . . . . . Miscellaneous . | . . . . . . . . . . . . . . . . . . . . . . . . . . . . . Route ------- -11/Scrapyard -10/Materials (discovered 4 exits: *Mat x2 / *Min / *Sub) -10/Mines (discovered 3 exits: *Mat x2 / *Exi) -10/Exiles -9/Mines -8/Materials -8/Storage (discovered 2 exits: *Fac / *Rec) -8/Recycling (discovered 2 exits: *Fac / *Scr) -8/Scraptown -6/Factory (discovered 3 exits: *Fac x2 / *Low) -6/Lower Caves -6/Lower Caves (discovered 2 exits: Fac / *Zio) -6/Zion -5/Proximity Caves -5/Factory (discovered 5 exits: *Fac x3 / *Upp x2) -5/Upper Caves -5/Upper Caves -5/Warlord -4/Proximity Caves -4/Factory (discovered 3 exits: Res / *Upp / *Ext) -4/Extension (discovered 3 exits: *Res x2 / *Cet) -4/Cetus -4/Archives (discovered 2 exits: *Hub x2) -4/Hub_04(d) -3/Research (discovered 5 exits: *Res x3 / Qua x2) -2/Research (discovered 3 exits: *Acc / *Tes x2) -2/Testing (discovered 3 exits: *Acc / *Sec / *Frg) -2/Protoforge -1/Access To Epsilon Eridani History --------- Turn | Location | Event 11 | -11/Scrapyard | Identified exit to Materials 11 | -11/Scrapyard | Discovered exit to Materials (range 15) 76 | -11/Scrapyard | Entered Materials 76 | -10/Materials | Evolved 1 slot: Utility x1 315 | -10/Materials | Build established: Hacker-Mutant 316 | -10/Materials | Identified exit to Subcaves 316 | -10/Materials | Discovered exit to Subcaves (range 12) 583 | -10/Materials | Identified exit to Materials 583 | -10/Materials | Discovered exit to Materials (range 14) 702 | -10/Materials | Identified exit to Mines 702 | -10/Materials | Discovered exit to Mines (range 7) 929 | -10/Materials | Discovered exit to Materials (range 7) 1220 | -10/Materials | Entered Mines 1371 | -10/Mines | Assisted by bots powering up and referring to "LRC-V3" 1438 | -10/Mines | Assembled infested the area 1685 | -10/Mines | Lost 3 allies 1875 | -10/Mines | Received a Rocket Launcher from a helpful Derelict 2630 | -10/Mines | Discovered exit to Materials (range 5) 2681 | -10/Mines | Identified exit to Exiles 2681 | -10/Mines | Discovered exit to Exiles (range 5) 2806 | -10/Mines | Discovered exit to Materials (range 10) 2809 | -10/Mines | Learned Materials non-interactive machine intel 2937 | -10/Mines | Entered Exiles 3014 | -10/Exiles | Met 8R-AWN 3069 | -10/Exiles | Met EX-HEX 3174 | -10/Exiles | Met EX-BIN 3424 | -10/Exiles | Met EX-DEC 3443 | -10/Exiles | Learned location of Zion (-6) 3671 | -10/Exiles | Identified exit to Mines 3671 | -10/Exiles | Discovered exit to Mines (range 10) 3697 | -10/Exiles | Entered Mines 4058 | -9/Mines | Identified exit to Materials 4058 | -9/Mines | Discovered exit to Materials (range 3) 4205 | -9/Mines | Entered Materials 4205 | -8/Materials | Evolved 4 slots: Propulsion x2, Utility x1, Weapon x1 4206 | -8/Materials | Loaded intel: 23 non-interactive machine locations 4336 | -8/Materials | Identified exit to Storage 4336 | -8/Materials | Discovered exit to Storage (range 4) 4433 | -8/Materials | Entered Storage 4693 | -8/Storage | Build established: Hacker-Tank 5195 | -8/Storage | Assisted by bots powering up and referring to "LRC-V3" 5480 | -8/Storage | Build established: Commander-Tank 5515 | -8/Storage | Garrison activated, responded to threat 5673 | -8/Storage | Identified exit to Factory 5673 | -8/Storage | Discovered exit to Factory (range 16) 5732 | -8/Storage | Met 01-MTF 6323 | -8/Storage | Identified exit to Recycling 6323 | -8/Storage | Discovered exit to Recycling (range 4) 6341 | -8/Storage | Entered Recycling 6341 | -8/Recycling | Accompanied by 9 allies (01-MTF) 6816 | -8/Recycling | Identified exit to Factory 6816 | -8/Recycling | Discovered exit to Factory (range 15) 6950 | -8/Recycling | Scanned before Scraplab entrance 7065 | -8/Recycling | Entered Scraplab 7092 | -8/Recycling | Identified exit to Scraptown 7092 | -8/Recycling | Discovered exit to Scraptown (range 3) 7106 | -8/Recycling | Entered Scraptown 7106 | -8/Scraptown | Accompanied by 6 allies 7823 | -8/Scraptown | Visited UFD Registry 7833 | -8/Scraptown | Registered with UFD as "Gammacase" 7952 | -8/Scraptown | Visited DA-N13 Charitable Foundation 7974 | -8/Scraptown | Found DCF Scrap (29 items) 8079 | -8/Scraptown | Visited Supply Room 8152 | -8/Scraptown | Met Optimus 8152 | -8/Scraptown | Accepted into 0bPrime 8298 | -8/Scraptown | Discovered exit to Factory (range 3) 8552 | -8/Scraptown | Civil war broke out across Scraptown 8563 | -8/Scraptown | Entered Factory 8563 | -6/Factory | Accompanied by 6 allies 8563 | -6/Factory | Evolved 4 slots: Power x1, Utility x2, Weapon x1 8759 | -6/Factory | Loaded intel: 8 recycling unit locations 8887 | -6/Factory | Lost 3 allies 8947 | -6/Factory | Spotted B-75 Beast 8952 | -6/Factory | Destroyed B-75 Beast 9225 | -6/Factory | Lost 3 allies 9298 | -6/Factory | Build established: Scavenger-Tank 9446 | -6/Factory | Identified exit to Factory 9446 | -6/Factory | Discovered exit to Factory (range 7) 9680 | -6/Factory | Learned location of Protoforge (-2) 9921 | -6/Factory | Discovered exit to Factory (range 9) 10025 | -6/Factory | Build established: Hacker-Tank 10258 | -6/Factory | Repaired Adv. Heat Sink 10351 | -6/Factory | Destroyed 7 combat bots 10626 | -6/Factory | Build established: Scavenger-Tank 11342 | -6/Factory | Identified exit to Lower Caves 11342 | -6/Factory | Discovered exit to Lower Caves (range 15) 11457 | -6/Factory | Garrison activated, responded to threat 11572 | -6/Factory | Entered Lower Caves 11788 | -6/Lower Caves | Learned Factory non-interactive machine intel 12177 | -6/Lower Caves | Learned Factory terminal intel 12254 | -6/Lower Caves | Ambushed by research squad 12444 | -6/Lower Caves | Identified exit to Lower Caves 12444 | -6/Lower Caves | Discovered exit to Lower Caves (range 5) 12464 | -6/Lower Caves | Entered another Lower Caves area 12734 | -6/Lower Caves | Identified exit to Zion 13125 | -6/Lower Caves | Attracted the attention of an 0b10 checkpoint 13204 | -6/Lower Caves | Entered Zion 13276 | -6/Zion | System corruption cleaned by Quarantine Array 13970 | -6/Zion | Learned Factory terminal intel 14179 | -6/Zion | Turned away by Imprinter 14815 | -6/Zion | Identified exit to Proximity Caves 14815 | -6/Zion | Discovered exit to Proximity Caves (range 15) 14852 | -6/Zion | Entered Proximity Caves 14894 | -5/Proximity Caves | Spotted B-75 Beast 14897 | -5/Proximity Caves | Destroyed B-75 Beast 15232 | -5/Proximity Caves | Found Alien Artifact 15232 | -5/Proximity Caves | Identified Dimensional Node Initializer 15232 | -5/Proximity Caves | Initialized slip node 15447 | -5/Proximity Caves | Learned Factory terminal intel 16051 | -5/Proximity Caves | Discovered exit to Factory (range 14) 16176 | -5/Proximity Caves | Entered Factory 16176 | -5/Factory | Evolved 2 slots: Utility x2 16177 | -5/Factory | Loaded intel: 213 non-interactive machine locations 16178 | -5/Factory | Loaded intel: 26 terminal locations 16476 | -5/Factory | Build established: Scavenger-Gunner 16527 | -5/Factory | Garrison activated, responded to threat 16888 | -5/Factory | Found Powered Armor 16892 | -5/Factory | Found Powered Armor 17088 | -5/Factory | Fabricated Adv. Cooling System (x2) 17111 | -5/Factory | Identified exit to Factory 17111 | -5/Factory | Discovered exit to Factory (range 9) 17390 | -5/Factory | Build established: Hacker-Tank 17933 | -5/Factory | Loaded intel: 8 recycling unit locations 18263 | -5/Factory | Spotted B-75 Beast 18290 | -5/Factory | Destroyed B-75 Beast 18787 | -5/Factory | Discovered exit to Factory (range 16) 20545 | -5/Factory | Fabricated Adv. Cooling System (x2) 20905 | -5/Factory | Destroyed 8 combat bots 21876 | -5/Factory | Destroyed 7 combat bots 22509 | -5/Factory | Discovered exit to Factory (range 11) 22628 | -5/Factory | Identified exit to Upper Caves 22862 | -5/Factory | Entered Upper Caves 23107 | -5/Upper Caves | Attracted the attention of an 0b10 outpost 23392 | -5/Upper Caves | Encountered a Warlord checkpoint 23425 | -5/Upper Caves | Learned 4 Factory zone layouts 23593 | -5/Upper Caves | Lost 3 allies 23668 | -5/Upper Caves | Spotted B-75 Beast 23680 | -5/Upper Caves | Destroyed B-75 Beast 23885 | -5/Upper Caves | Learned location of 1 exit from Factory 23967 | -5/Upper Caves | Learned 4 Factory zone layouts 24343 | -5/Upper Caves | Identified exit to Upper Caves 24343 | -5/Upper Caves | Discovered exit to Upper Caves (range 11) 24389 | -5/Upper Caves | Entered another Upper Caves area 24397 | -5/Upper Caves | Identified exit to Warlord 24397 | -5/Upper Caves | Discovered exit to Warlord (range 6) 24416 | -5/Upper Caves | Entered Warlord 24567 | -5/Warlord | Identified exit to Proximity Caves 24567 | -5/Warlord | Discovered exit to Proximity Caves (range 9) 24720 | -5/Warlord | System corruption cleaned by Quarantine Array 25103 | -5/Warlord | Visited the Vortex Lab 25103 | -5/Warlord | Warlord's base attacked by MAIN.C 25453 | -5/Warlord | Warlord forces counterattacked 25765 | -5/Warlord | Lost 3 allies 25778 | -5/Warlord | Warlord base infiltrated, sounded retreat 25794 | -5/Warlord | Rebuked by Warlord 25837 | -5/Warlord | Spotted Striker 25846 | -5/Warlord | Allies destroyed Striker 25888 | -5/Warlord | Lost 8 allies 26079 | -5/Warlord | Spotted Executioner 26094 | -5/Warlord | Entered Proximity Caves 26094 | -4/Proximity Caves | Spotted B-86 Titan 26099 | -4/Proximity Caves | Destroyed B-86 Titan 26450 | -4/Proximity Caves | Build established: Scavenger-Tank 26627 | -4/Proximity Caves | Discovered exit to Factory (range 14) 26666 | -4/Proximity Caves | Entered Factory 26666 | -4/Factory | Evolved 2 slots: Utility x2 26667 | -4/Factory | Identified exit to Extension 26668 | -4/Factory | Identified exit to Research 26670 | -4/Factory | Loaded intel: 28 terminal locations 27057 | -4/Factory | Build established: Hacker-Tank 27459 | -4/Factory | Identified exit to Upper Caves 27459 | -4/Factory | Discovered exit to Upper Caves (range 13) 27763 | -4/Factory | Loaded intel: 8 recycling unit locations 28045 | -4/Factory | Entered Extension 28047 | -4/Extension | Disrupted transfer network 28149 | -4/Extension | Rescued A7 28154 | -4/Extension | Build established: Hacker-Gunner 28248 | -4/Extension | Rescued a captive Derelict 28248 | -4/Extension | Rescued a captive Derelict 28355 | -4/Extension | Rescued a captive Derelict 28429 | -4/Extension | Rescued a captive Derelict 28536 | -4/Extension | Energy Cycler disabled 28536 | -4/Extension | Rescued a captive Derelict 28537 | -4/Extension | Rescued a captive Derelict 28537 | -4/Extension | Rescued a captive Derelict 28539 | -4/Extension | Rescued a captive Derelict 28540 | -4/Extension | Rescued a captive Derelict 28541 | -4/Extension | Rescued a captive Derelict 28543 | -4/Extension | Rescued a captive Derelict 28545 | -4/Extension | Rescued a captive Derelict 28633 | -4/Extension | Spotted B-86 Titan 28656 | -4/Extension | Destroyed B-86 Titan 28681 | -4/Extension | Spotted B-86 Titan 28704 | -4/Extension | Allies destroyed B-86 Titan 28705 | -4/Extension | Discovered exit to Research (range 15) 29287 | -4/Extension | Discovered exit to Research (range 10) 29290 | -4/Extension | Identified exit to Cetus 29290 | -4/Extension | Discovered exit to Cetus (range 6) 29325 | -4/Extension | Entered Cetus 29325 | -4/Cetus | Accompanied by 6 allies (A7) 29330 | -4/Cetus | Acquired a Cetus Manufacturing Module code from A7 29356 | -4/Cetus | Spotted Cetus Guard 29356 | -4/Cetus | Spotted Cetus Guard 29365 | -4/Cetus | Destroyed Cetus Guard 29365 | -4/Cetus | Spotted Cetus Guard 29366 | -4/Cetus | Allies destroyed Cetus Guard 29366 | -4/Cetus | Spotted Cetus Guard 29372 | -4/Cetus | Destroyed Cetus Guard 29385 | -4/Cetus | Destroyed Cetus Guard 29515 | -4/Cetus | Started Cetus Manufacturing Module 29540 | -4/Cetus | Manufactured an Enhanced Grunt 29565 | -4/Cetus | Manufactured an Enhanced Grunt 29568 | -4/Cetus | Identified exit to Archives 29568 | -4/Cetus | Discovered exit to Archives (range 16) 29590 | -4/Cetus | Manufactured an Enhanced Grunt 29615 | -4/Cetus | Manufactured an Enhanced Grunt 29640 | -4/Cetus | Manufactured an Enhanced Grunt 29690 | -4/Cetus | Entered Archives 29690 | -4/Archives | Accompanied by 9 allies (A7) 29759 | -4/Archives | Unable to access archive contents 29764 | -4/Archives | Identified exit to Hub_04(d) 29764 | -4/Archives | Discovered exit to Hub_04(d) (range 16) 29788 | -4/Archives | Discovered exit to Hub_04(d) (range 16) 29941 | -4/Archives | Build established: Commander-Gunner 29954 | -4/Archives | Entered Hub_04(d) 29954 | -4/Hub_04(d) | Accompanied by 7 allies 30396 | -4/Hub_04(d) | Build established: Hacker-Gunner 30444 | -4/Hub_04(d) | Spotted B-86 Titan 30451 | -4/Hub_04(d) | Destroyed B-86 Titan 30607 | -4/Hub_04(d) | Network Hub disabled 30666 | -4/Hub_04(d) | Spotted Lightning 30669 | -4/Hub_04(d) | Spotted Lightning 30671 | -4/Hub_04(d) | Spotted Lightning 30682 | -4/Hub_04(d) | Destroyed Lightning 30692 | -4/Hub_04(d) | Destroyed Lightning 30703 | -4/Hub_04(d) | Destroyed Lightning 30991 | -4/Hub_04(d) | Network Hub disabled 30992 | -4/Hub_04(d) | System corruption reached 10% 31057 | -4/Hub_04(d) | Disrupted transfer network 31510 | -4/Hub_04(d) | Discovered exit to Research (range 16) 31535 | -4/Hub_04(d) | Spotted Lightning 31535 | -4/Hub_04(d) | Spotted Lightning 31540 | -4/Hub_04(d) | Spotted Lightning 31595 | -4/Hub_04(d) | Destroyed Lightning 31610 | -4/Hub_04(d) | Destroyed Lightning 31613 | -4/Hub_04(d) | Destroyed Lightning 31614 | -4/Hub_04(d) | Spotted Lightning 31644 | -4/Hub_04(d) | Spotted Lightning 31645 | -4/Hub_04(d) | Spotted Lightning 31661 | -4/Hub_04(d) | Destroyed Lightning 31676 | -4/Hub_04(d) | Destroyed Lightning 31681 | -4/Hub_04(d) | Destroyed Lightning 31709 | -4/Hub_04(d) | Lost 9 parts (2p2n3u2w) 31888 | -4/Hub_04(d) | Build established: Scavenger-Tank 31925 | -4/Hub_04(d) | Network Hub disabled 31943 | -4/Hub_04(d) | Entered Research 31943 | -3/Research | Evolved 2 slots: Propulsion x2 32139 | -3/Research | Loaded intel: 5 recycling unit locations 33235 | -3/Research | Cargo convoy interrupted 33369 | -3/Research | Identified exit to Quarantine 33369 | -3/Research | Identified exit to Research 33481 | -3/Research | Entered another Research area 33481 | -2/Research | Evolved 2 slots: Weapon x2 33804 | -2/Research | Build established: Scavenger-Executioner 33900 | -2/Research | Identified exit to Testing 34733 | -2/Research | Identified exit to Access 34733 | -2/Research | Discovered exit to Access (range 16) 34757 | -2/Research | Entered Testing 34908 | -2/Testing | Rewired PX-TLF5R20UWN 34952 | -2/Testing | Scanned by Researcher 34966 | -2/Testing | Found Prototype Energy Cannon 34966 | -2/Testing | Identified Cld. Nova Cannon 35118 | -2/Testing | Found Prototype Device 35118 | -2/Testing | Identified Exp. Focal Shield 35182 | -2/Testing | Found Prototype Device 35182 | -2/Testing | Identified 2N-1CE's Frost Array 35318 | -2/Testing | Spotted Striker 35318 | -2/Testing | Spotted Striker 35324 | -2/Testing | Destroyed Striker 35332 | -2/Testing | Spotted Alpha 7 35335 | -2/Testing | Destroyed Striker 35355 | -2/Testing | Destroyed Alpha 7 35438 | -2/Testing | Spotted PD-40TN1U2QO6 35498 | -2/Testing | Build established: Hacker-Executioner 35588 | -2/Testing | Found Prototype Device 35588 | -2/Testing | Identified Femtoactuators 35882 | -2/Testing | Build established: Scavenger-Executioner 35982 | -2/Testing | Found Prototype Energy Cannon 35982 | -2/Testing | Identified Null Cannon 36416 | -2/Testing | Spotted Fortress 36420 | -2/Testing | Destroyed Fortress 36452 | -2/Testing | Found Prototype Reactor 36452 | -2/Testing | Identified Vortex Chain Reactor 36467 | -2/Testing | Found Prototype Protection 36568 | -2/Testing | Identified exit to Section 7 36568 | -2/Testing | Discovered exit to Section 7 (range 6) 36568 | -2/Testing | Identified exit to Protoforge 36568 | -2/Testing | Discovered exit to Protoforge (range 6) 36578 | -2/Testing | Entered Protoforge 36651 | -2/Protoforge | Spotted Hotshot 36670 | -2/Protoforge | Destroyed Hotshot 36675 | -2/Protoforge | Spotted Hotshot 36677 | -2/Protoforge | Superfortress began startup sequence 36690 | -2/Protoforge | Destroyed Hotshot 36980 | -2/Protoforge | Repaired Adv. Cooling System 36995 | -2/Protoforge | Repaired Imp. Cooling System 37078 | -2/Protoforge | Destroyed 8 combat bots 37170 | -2/Protoforge | Spotted Hotshot 37172 | -2/Protoforge | Destroyed Hotshot 37211 | -2/Protoforge | Spotted Hotshot 37215 | -2/Protoforge | Destroyed Hotshot 37332 | -2/Protoforge | Discovered exit to Access (range 13) 37756 | -2/Protoforge | Spotted Hotshot 37756 | -2/Protoforge | Spotted Hotshot 37766 | -2/Protoforge | Destroyed Hotshot 37774 | -2/Protoforge | Destroyed Hotshot 37864 | -2/Protoforge | Spotted B-90 Cyclops 37883 | -2/Protoforge | Destroyed B-90 Cyclops 38040 | -2/Protoforge | Spotted Decapitator 38042 | -2/Protoforge | Destroyed Decapitator 38057 | -2/Protoforge | Spotted Immortal 38075 | -2/Protoforge | Spotted Hotshot 38082 | -2/Protoforge | Released all parts (14) 38082 | -2/Protoforge | Spotted Hotshot 38082 | -2/Protoforge | Spotted Executioner 38103 | -2/Protoforge | Lost 13 parts (2p2n6u3w) 38122 | -2/Protoforge | Spotted Hotshot 38125 | -2/Protoforge | Spotted Hotshot 38139 | -2/Protoforge | Core integrity fell below 50% 38153 | -2/Protoforge | Entered Access 38153 | -1/Access | Evolved 2 slots: Utility x2 38202 | -1/Access | Released all parts (6) 38270 | -1/Access | Identified exit to Surface 38370 | -1/Access | Core integrity fell below 50% 38388 | -1/Access | Build established: Hacker-Mutant 38395 | *** | Escaped! Last Messages --------------- Access Zone 1X. 38337_ Slug penetrates G-73 Enforcer. 38337_ Impulse Thruster destroyed. 38346_ Slug penetrates Wall. 38360_ Hyperwave Decoder disabled. 38360_ Slug penetrates Wall. 38365_ Slammed into H-88 Terminator. 38366_ Penetrated by Slug. 38366_ Slug penetrates Wall. 38368_ Penetrated by Slug. 38370_ Slug penetrates Wall. 38371_ Wall collapses. 38371_ Penetrated by Slug. 38373_ Slug penetrates Wall. 38373_ Penetrated by Slug. 38391_ Connecting with Terminal... >>Open(Door) Sealed Barrier opened. 38393_ The Access Shell folds into the floor. 38395_ System corrupted: Heat flow error (+101). Map ----- +----------------------------------------------------+ | ?????????????????????????????????????????????????? | | ?????????????????????????????????????????????????? | | ?????????????????????????????????????????????????? | | ?????????????????????????????????????????????????? | | ?????????????????????????????????????????????????? | | ?????????????????????????????????????????????????? | | ?????????????????????????????????????????????????? | | ?????????????????????????????????????????????????? | | ?????????????????????????????????????????????????? | | ?????????????????????????????????????????????????? | | ??????????????#+################################## | | ????????????? | | ????????????? R | | ???????????????????## ""#####+######+###### | | ????????????????????# ""#??????????# ???? | | ????????????????????# ""#??????????# ?? | | ????????????????????# T#??????????# # | | ????????????????????# ""#??????????# # | | ????????????????????# ""#??????????# # | | ???????????????????## ""##?????????# # | | ???????????????????# #?????????# # | | ???????????????????## ##?????????# # | | ????????????????????# #??????????? # | | ????????????????????# #??????????? # | | ????????????????????# #??????????? # | | ????????????????????# @" #??????????? # | | ????????????????????# "" #??????????? # | | ????????????????????# #??????????? ?? | | ????????????????????# #???????????###???? | | ????????????????????# #????############## | | ????????????????????#""""""""""#????# | | ????????????????????????????????????# | | ????????????????????????????????????# | | ????????????????????????????????????# | | ????????????????????????????????????# | | ????????????????????????????????????# | | ????????????????????????????????????# "" " | | ????????????????????????????????????# """"" | | ????????????????????????????????????# """"" | | ????????????????????????????????????# """"" | | ????????????????????????????????????# """"" | | ????????????????????????????????????############## | | ?????????????????????????????????????????????????? | | ?????????????????????????????????????????????????? | | ?????????????????????????????????????????????????? | | ?????????????????????????????????????????????????? | | ?????????????????????????????????????????????????? | | ?????????????????????????????????????????????????? | | ?????????????????????????????????????????????????? | | ?????????????????????????????????????????????????? | +----------------------------------------------------+ Best States ------------- Heat Dissipation 238 Energy Generation 75 Energy Capacity 1200 Matter Stores 300 Matter Capacity 300 Sight Range 16 Terrain Scan Density 10 Power Amplification 40 Armor Coverage 825 Resistance: KI 65 Resistance: TH 35 Resistance: EX 35 Resistance: EM 35 Resistance: I 35 Resistance: S 35 Resistance: P 35 Weapon Cycling 15 Phase Shifting 15 Evasion (%) 62 Targeting Accuracy 8 Target Analysis 8 Recoil Reduction 6 Matter Filtering 50 Energy Filtering 50 Offensive Hacking 20 Item Schematics ----------------- Imp. Propulsion Shielding | -8/Storage | Hacked Imp. Particle Charger | -8/Storage | Hacked Drone Bay | -8/Storage | Hacked Hpw. Shock Rifle | -6/Zion | Archive Adv. Recoil Stabilizer | -6/Zion | Archive Proton Cannon | -6/Zion | Archive Field Propulsion Drive | -6/Zion | Archive Hvy. Flak Cannon | -6/Zion | Archive Imp. Plasma Cutter | -6/Zion | Archive Fission Core | -6/Zion | Archive Adv. Cryofiber Web | -6/Zion | Archive Dispersion Rifle | -6/Zion | Archive Imp. Core Shielding | -6/Zion | Archive Imp. Shock Absorption System | -6/Zion | Archive Imp. Recalibrator | -6/Zion | Archive Enh. Optical Array | -6/Zion | Archive Lgt. Angular Momentum Engine | -6/Zion | Archive Adv. Cooling System | -6/Zion | Archive Cld. Gravmag System | -2/Testing | Archive Hvy. Antimatter Reactor | -2/Testing | Archive Adv. EM Disruption Field | -2/Testing | Archive Exp. Matter Compressor | -2/Testing | Archive Electron Diverter | -2/Testing | Archive Hds. Centrium Leg | -2/Testing | Archive Imp. Quantum Reactor | -2/Testing | Archive Exp. Melee Analysis Suite | -2/Testing | Archive Hvy. Gatling Laser | -2/Testing | Archive Exp. Myomer Leg | -2/Testing | Archive Imp. Diametric Drive | -2/Testing | Archive Prc. Energy Filter | -2/Testing | Archive Robot Schematics ------------------ E-15 Imp | -6/Zion | Archive Y-54 Guardian | -6/Zion | Archive K-01 Serf | -6/Zion | Archive A-27 Freighter | -2/Testing | Archive R-10 Processor | -2/Testing | Archive T-07 Excavator | -2/Testing | Archive H-88 Terminator | -2/Testing | Archive Fabricated ------------ Adv. Cooling System | x2 | -5/Factory Adv. Cooling System | x2 | -5/Factory Repaired ---------- Adv. Heat Sink | 20% | -6/Factory Adv. Cooling System | 13% | -2/Protoforge Imp. Cooling System | 74% | -2/Protoforge Studied --------- Angular Momentum Engine | -5/Factory | Hacked Assault Cannon | -5/Factory | Hacked Rnf. Deuterium Engine | -5/Factory | Hacked Gauss Cannon | -5/Factory | Hacked Hardcell Cannon | -4/Factory | Hacked Antimatter Reactor | -2/Testing | Hacked Biometal Heavy Treads | -2/Testing | Hacked Enh. Hardcell Cannon | -2/Testing | Hacked Enh. Nova Cannon | -2/Testing | Hacked Linear Accelerator | -2/Testing | Hacked Adv. Heavy Siege Treads | -2/Testing | Hacked Hvy. Gauss Cannon | -2/Protoforge | Hacked Matter Neutralizer | -2/Protoforge | Hacked Quantum Reactor | -2/Protoforge | Hacked Lgt. Quantum Reactor | -2/Protoforge | Hacked Quantum Rifle | -2/Protoforge | Hacked Alien Tech Used ----------------- Dimensional Node Initializer Achievements -------------- Super-what Now? Challenges ------------ None Game ------ Seed SpikedDroneHarness Manual? 0 Play Time 03:18:01 Cumulative 283.8 hours Start 2026.09.22 @ 17:09:44 End 2026.09.22 @ 21:30:07 Sessions 3 Manual Loads 0 Difficulty Explorer Special Mode None Game No. 502 Rogue 330 Adventurer 15 Explorer 157 Win Type 0 Total 35 Types 34/0/0/1/0/0/0/0/0/0 Lore% 67 Gallery% 65 Achievement% 59 Wizard Run 0 Options --------- Layout 0 ASCII 0 Keyboard 1 Movement Numpad Keybinds 0 Fullscreen 2 Font 18/SmallcapsGlow Map View 76x50 Zoom Use 0% Tactical HUD 1 Map Filters NONE Filters NONE Steam 1 RUN: a7de698f-9fe1-42d7-b15c-d112c19fb74d